Cogmind - Beta 13 @@@ ROGUE MODE // 2024.03.31 @ 02:04:32 Player: Eliza Result: Destroyed by G-34 Mercenary with Small Laser Performance ------------- Evolutions (0) 0 Regions Visited (2) 400 Robots Destroyed (7) 35 Value Destroyed (73) 73 Prototype IDs (0) 0 Alien Tech Used (0) 0 Bonus (14) 14 TOTAL SCORE: 522 Bonus ------- Follower Combat Kills 14 Cogmind --------- Core Integrity 0/250 Matter 299/300 Energy 90/100 System Corruption 17% Temperature Warm (167) Movement Core (50) Location -10/Mines Parts ------- > --- POWER (1) -------- (None) > --- PROPULSION (2) --- (None) > --- UTILITY (2) ------ (None) > --- WEAPON (2) ------- (None) > --- INVENTORY (5) ---- Light Ion Engine Peak State ------------ > --- POWER ------------ Light Ion Engine > --- PROPULSION ------- Wheel Wheel > --- UTILITY ---------- Small Matter Pod Signal Interpreter > --- WEAPON ----------- EM Pulse Gun Medium Laser > --- INVENTORY -------- Light Ion Engine Aluminum Leg Aluminum Leg Seismic Detector Small Laser [Rating: 7] Favorites ----------- Power Light Ion Engine Engine Light Ion Engine Propulsion Wheel Leg Aluminum Leg Wheel Wheel Utility Small Matter Pod Device Seismic Detector Storage Small Matter Pod Processor Signal Interpreter Weapon Medium Laser Energy Gun Medium Laser Special Weapon Mining Laser Build | -11 -10 -10 ------- Run | Yrd Mat Min Slots Evolved . | . . . Power . | . . . Propulsion . | . . . Utility . | . . . Weapon . | . . . Parts Attached 17 | 7 2 8 Power 5 | 2 . 3 Engine 5 | 2 . 3 Core . | . . . Reactor . | . . . Propulsion 4 | 2 . 2 Treads . | . . . Leg 2 | . . 2 Wheel 2 | 2 . . Hover . | . . . Flight . | . . . Utility 3 | 1 1 1 Device 1 | . . 1 Storage 1 | 1 . . Processor 1 | . 1 . Hackware . | . . . Protection . | . . . Artifact . | . . . Weapon 5 | 2 1 2 Energy Gun 4 | 2 1 1 Energy Cannon . | . . . Ballistic Gun . | . . . Ballistic Cannon . | . . . Launcher . | . . . Special Weapon 1 | . . 1 Impact Weapon . | . . . Slashing Weapon . | . . . Piercing Weapon . | . . . Special Melee Weapon . | . . . Unidentified Prototypes . | . . . Parts Lost 13 | 1 1 11 Power 2 | 1 . 1 Propulsion 4 | . . 4 Utility 3 | . . 3 Weapon 4 | . 1 3 Highest Loss Streak 8 | 1 1 8 To Critical Strikes . | . . . Average Slot Usage (%) 95 | . 97 95 Engine 14 | . 14 14 Leg 5 | . . 7 Wheel 21 | . 28 19 Device 2 | . . 3 Storage 10 | . 14 8 Processor 13 | . 11 14 Energy Gun 26 | . 28 25 Special Weapon 1 | . . 1 Naked Turns . | . . . Heaviest Build 8 | 8 8 7 Greatest Support 20 | 20 20 20 Greatest Overweight (x) 1 | . . 1 Average Overweight (x) . | . . . Largest Inventory Capacity 5 | 5 5 5 Average Capacity 5 | 5 5 5 Most Carried 5 | 5 5 5 Average Carried 3 | 3 4 3 Final Capacity 5 | 5 5 5 Final Carried 5 | 5 4 1 Class Distribution -------------------- 100% | Mutant Dominant Class ---------------- Mutant | -10/Materials Mutant | -10/Mines Resources | -11 -10 -10 ----------- Run | Yrd Mat Min Matter Collected 330 | 291 . 39 Remotely . | . . . Salvage Created 175 | 165 . 10 Parts 15 | 13 . 2 Haulers Intercepted . | . . . Recyclers Shooed . | . . . Parts Field Recycled . | . . . Retrieved Matter . | . . . Parts Self-Destructed . | . . . Prevented . | . . . Kills | -11 -10 -10 ------- Run | Yrd Mat Min Combat Hostiles Destroyed 2 | 1 . 1 Guns 2 | 1 . 1 Classes Destroyed 4 | 3 . 1 Worker 1 | 1 . . Tunneler 4 | 4 . . Swarmer 1 | . . 1 Grunt 1 | 1 . . Best Kill Streak 3 | 3 . 1 Combat Bots Only 1 | 1 . 1 Max Kills in Single Turn 1 | 1 . 1 Gunslinging . | . . . Exploded . | . . . Melee . | . . . Uniques/NPCs Destroyed . | . . . Combat | -11 -10 -10 -------- Run | Yrd Mat Min Hostile Shots Fired 100 | 13 19 68 Missed 24 | 2 6 16 Damage Taken 1049 | 120 110 819 Core 250 | 44 24 182 Absorbed by Shields . | . . . Core Remaining (%) 82 | 82 . . Volleys Fired 28 | 16 . 12 Largest 2 | 2 . 2 Hottest 150 | 90 . 150 Shots Fired 45 | 26 . 19 Gun 42 | 26 . 16 Cannon . | . . . Launcher . | . . . Special 3 | . . 3 Kinetic . | . . . Thermal 29 | 10 . 19 Explosive . | . . . Electromagnetic 16 | 16 . . Robot Hit Streak 4 | 4 . 4 Robot Miss Streak 4 | 4 . 3 Penetration Max . | . . . Secondary Targets . | . . . Shots Hit Robots 19 | 14 . 5 Core Hits 10 | 7 . 3 Critical Kills . | . . . Critical Parts Destroyed . | . . . Critical Strikes . | . . . Melee Attacks . | . . . Impact . | . . . Slashing . | . . . Piercing . | . . . Sneak Attacks . | . . . Combat Hostiles . | . . . Follow-up Attacks . | . . . Damage Inflicted 412 | 296 . 116 Guns 315 | 199 . 116 Cannons . | . . . Explosions 97 | 97 . . Melee . | . . . Ramming . | . . . Kinetic . | . . . Thermal 263 | 147 . 116 Explosive . | . . . Electromagnetic 149 | 149 . . Impact . | . . . Slashing . | . . . Piercing . | . . . Highest Corruption 17 | . . 17 Average Corruption 17 | . . 17 Corruption Purged . | . . . Corruption Blocked . | . . . Overload Shots . | . . . Overflow Damage 20 | 20 . . Projectiles . | . . . Explosions 20 | 20 . . Melee . | . . . Knockbacks . | . . . Impact . | . . . Kinetic . | . . . Secondary . | . . . Self-Inflicted Damage . | . . . Shots . | . . . Rammed . | . . . Targets Rammed . | . . . Kicked . | . . . Crushed . | . . . Highest Temperature 281 | 281 . 170 Average Temperature 106 | 137 . 77 Received Heat Transfer 300 | 66 . 234 Effects 1 | 1 . . Interference 1 | 1 . . Siege Activations . | . . . Robots Corrupted . | . . . Combat Hostiles . | . . . Parts Fried . | . . . Impact Corruptions . | . . . Robots Melted . | . . . Combat Hostiles . | . . . Parts Melted 1 | 1 . . Heat Transferred 596 | 298 . 298 Parts Sabotaged . | . . . Parts Stolen . | . . . Parts Stripped . | . . . Power Chain Reactions 1 | 1 . . Alert | -11 -10 -10 ------- Run | Yrd Mat Min Peak Influence 63 | 35 60 63 Initial 22 | . 22 19 Average 20 | 11 34 25 Maximum Alert Level . | . . . Low Security (%) 100 | 100 100 100 Level 1 . | . . . Level 2 . | . . . Level 3 . | . . . Level 4 . | . . . Level 5 . | . . . High Security . | . . . Max Security . | . . . Squads Dispatched 1 | . 1 . Investigation 1 | . 1 . Extermination . | . . . Reinforcement . | . . . Assault . | . . . Garrison . | . . . Intercept . | . . . Searches Triggered . | . . . Construction Impeded . | . . . Haulers Reinforced . | . . . Active Scanning Responses . | . . . Cargo Convoy Interrupts . | . . . Stealth | -11 -10 -10 --------- Run | Yrd Mat Min Distress Signals . | . . . Communications Jammed . | . . . Distress Signals . | . . . Times Spotted 18 | 1 5 12 Peak Tracking Total 9 | 1 5 9 Tactical Retreats 1 | . . 1 Traps | -11 -10 -10 ------- Run | Yrd Mat Min Traps Triggered . | . . . Indirectly . | . . . Trap Hack Attempts . | . . . Triggered . | . . . Disarmed . | . . . Reprogrammed . | . . . Reused . | . . . Traps Extracted . | . . . Installed . | . . . Triggered . | . . . Machines | -11 -10 -10 ---------- Run | Yrd Mat Min Machines Disabled . | . . . Max in Single Turn . | . . . Machines Repaired . | . . . Machines Dismantled . | . . . Machines Sabotaged . | . . . Overloaded Fab Kills . | . . . Hacking | -11 -10 -10 --------- Run | Yrd Mat Min Machines Accessed 1 | . 1 . Terminals 1 | . 1 . Fabricators . | . . . Repair Stations . | . . . Recycling Units . | . . . Scanalyzers . | . . . Garrison Access . | . . . Total Hacks 4 | . 4 . Successful 3 | . 3 . Failed 1 | . 1 . Catastrophic 1 | . 1 . Database Lockouts . | . . . Manual 3 | . 3 . Terminals 4 | . 4 . Fabricators . | . . . Repair Stations . | . . . Recycling Units . | . . . Scanalyzers . | . . . Garrison Access . | . . . Terminal Hacks 3 | . 3 . Record 1 | . 1 . Emergency Access Points 1 | . 1 . Dispatch Records 1 | . 1 . Fabricator Hacks . | . . . Repair Station Hacks . | . . . Recycling Unit Hacks . | . . . Scanalyzer . | . . . Garrison Access Hacks . | . . . Unauthorized Hacks . | . . . Terminals . | . . . Fabricators . | . . . Repair Stations . | . . . Recycling Units . | . . . Scanalyzers . | . . . Garrison Access . | . . . Data Cores Recovered . | . . . Used . | . . . Hacking Detections 1 | . 1 . Full Trace Events 1 | . 1 . Feedback Events . | . . . Feedback Blocked . | . . . Robot Schematics Acquired . | . . . Robots Built . | . . . Authchips . | . . . Time . | . . . Total Robot Build Rating . | . . . Part Schematics Acquired . | . . . Parts Built . | . . . Authchips . | . . . Time . | . . . Total Part Build Rating . | . . . Parts Repaired . | . . . Time . | . . . Parts Recycled . | . . . Recycled Matter . | . . . Retrieved Matter . | . . . Retrieved Components . | . . . Parts Scanalyzed . | . . . Part Schematics Acquired . | . . . Parts Damaged . | . . . Bothacking | -11 -10 -10 ------------ Run | Yrd Mat Min Used RIF Installer . | . . . Robots Hacked . | . . . Non-combat . | . . . Combat . | . . . Robot Hacks Applied . | . . . Relay Couplers Released . | . . . Fabnet Peak Effective % . | . . . Robots Rewired . | . . . Allies Hacked . | . . . Hacks Repelled . | . . . Allies | -11 -10 -10 -------- Run | Yrd Mat Min Total Allies 1 | . . 1 Largest Group 1 | . . 1 Highest-Rated Group 31 | . . 31 Highest-Rated Ally 31 | . . 31 Total Orders . | . . . Ally Attacks 8 | . . 8 Total Damage 84 | . . 84 Kills 2 | . . 2 Allies Corrupted . | . . . Allies Melted . | . . . Intel | -11 -10 -10 ------- Run | Yrd Mat Min Robot Analysis Total . | . . . Derelict Logs Recovered . | . . . Drone Launches . | . . . Drone Recoveries . | . . . Exploration | -11 -10 -10 ------------- Run | Yrd Mat Min Turns Passed 387 | 175 48 164 Spaces Moved 346 | 151 57 138 Core 31 | 22 . 9 Treads . | . . . Legs 6 | . . 6 Wheels 309 | 129 57 123 Hover . | . . . Flight . | . . . Fastest Speed 50 | 50 80 80 Average Speed 79 | 75 80 83 Slowest Speed 120 | 80 80 120 Overloaded Moves . | . . . Propulsion Burnouts . | . . . Robots Hopped . | . . . Cave-ins Triggered 1 | . . 1 Exploration Rate (%) 16 | 6 19 24 Regions Visited 2 Branch Regions 1 Pre-discovered Areas . | . . . Known Exits Taken 1 | . 1 . Unknown Exits Taken 1 | 1 . . Scrap Searched . | . . . Spaces Dug 1 | . . 1 Terrain Destroyed 3 | 2 . 1 Melee . | . . . Projectile 1 | . . 1 AOE 2 | 2 . . Terrain Rammed . | . . . Walls Destroyed . | . . . Machines Disabled . | . . . Actions | -11 -10 -10 --------- Run | Yrd Mat Min Total 405 | 185 58 162 Wait 2 | . . 2 Move 344 | 150 56 138 Hop . | . . . Pick Up 13 | 12 . 1 Fast Attach 1 | . 1 . Attach 13 | 7 1 5 Detach 1 | . . 1 Swap 3 | . . 3 Drop . | . . . Fire 28 | 16 . 12 Melee . | . . . Ram . | . . . Kick . | . . . Crush . | . . . Escape Stasis . | . . . Rewire . | . . . Trap . | . . . Miscellaneous . | . . . Route ------- -11/Scrapyard -10/Materials -10/Mines (discovered 1 exit: [*Mat]) History --------- Turn | Location | Event 2 | -11/Scrapyard | Met Revision 17 81 | -11/Scrapyard | Discovered new exit (range 8) 176 | -11/Scrapyard | Entered Materials 181 | -10/Materials | Discovered new exit (range 15) 195 | -10/Materials | Identified exit to Mines 224 | -10/Materials | Entered Mines 246 | -10/Mines | Discovered new exit (range 11) 316 | -10/Mines | Build established: Mutant 343 | -10/Mines | Received a Mining Laser from a helpful Derelict 366 | -10/Mines | Lost 3 parts (2n1u) 372 | -10/Mines | Core integrity fell below 50% 386 | -10/Mines | Crushed by falling debris 386 | -10/Mines | System corruption reached 10% 387 | -10/Mines | Core integrity fell below 20% 388 | -10/Mines | Destroyed by G-34 Mercenary with Small Laser Last Messages --------------- which incurs significant penalties. S-10 Pest destroyed. Mining Laser destroyed. Med. Laser destroyed. G-34 Mercenary destroyed. Acquired 39 matter. R-06 Scavenger collects Imp. Heat Sink. The unstable cave ceiling collapses. Crushed by falling debris. Aluminum Leg destroyed. System corrupted by crushing effect (+5). Aluminum Leg destroyed. System corrupted by crushing effect (+4). Lgt. Ion Engine destroyed. System corrupted by crushing effect (+3). Signal Interpreter destroyed. System corrupted by crushing effect (+5). Seismic Detector destroyed. R-06 Scavenger collects Beamcaster. Sml. Laser destroyed. Map ----- +----------------------------------------------------+ | | | | | | | | | | | | | | | | | | | | | | | | | | | | | | | | | | | | | ?????????????????????????????????????????????????? | | ?????????????????????????????????????????????????? | | ??????????????????????????###????????????????????? | | ???????########?????????##s ##???????????????????? | | ???????# ??######## s ##??????????????????? | | ???????? """ ?# %%r s #??????????????????? | | ???????? """ < ## ######ug= #??????????????????? | | ???????? """ #????#@g[ #??????????????????? | | ???????# # ##????##g ##??????????????????? | | ???????## ## #?# ##????######???????????????????? | | ????????????# #?# #?????????????????????????????? | | ????????????# #?## #?????????????????????????????? | | ????????????# #??# #?????????????????????????????? | | ????????????# #??# #???????????????????????####??? | | ???????????? #??# #??????????????????????# ##?? | | ????????????# #??# ###????????####???????# ### | | ????????????# #??# ##??????## ##?????? | | ????????????# #??## #?????## ####### ?? | | ????????????# ##### ####### ## ????? | | ???????????## ## #??????? | | ???????????# #???????? | | ???????????# #### ### #???????? | | ???????????## #### ##??# ### #???????? | | ???????????## ##??###???# ##???????? | | ???????##### ##????????# ### #????????? | | ???????# ##???????# #?## ## #????????? | | ???????# ##?????## ######### ##???????? | | ???????# ####### #?# #???????? | | ???????### # #?# #???????? | | ?????????## ## #?## ##???????? | | ??????????######### ##### """ #??## ##????????? | | ????????????????????????# """ #?### #?????????? | +----------------------------------------------------+ Best States ------------- Heat Dissipation 25 Energy Generation 10 Energy Capacity 125 Matter Stores 350 Matter Capacity 350 Sight Range 16 Terrain Scan Density 10 Evasion (%) 50 Item Schematics ----------------- None Robot Schematics ------------------ None Fabricated ------------ Nothing Alien Tech Used ----------------- None Achievements -------------- None Challenges ------------ None Game ------ Seed MetaZhirovComputer Manual? 0 Play Time 00:11:34 Cumulative 0.3 hours Start 2024.03.31 @ 01:55:52 End 2024.03.31 @ 02:04:32 Sessions 1 Manual Loads 0 Difficulty Rogue Special Mode None Game No. 1 Rogue 1 Adventurer 0 Explorer 0 Win Type - Total 0 Types 0/0/0/0/0/0/0/0/0 Lore% 0 Gallery% 1 Achievement% 100 Wizard Run 0 Options --------- Layout 2 ASCII 0 Keyboard 0 Movement Mouse Keybinds 0 Fullscreen 1 Font 32/SmallcapsGlow Map View 50x44 Zoom Use 0% Tactical HUD 0 Map Filters NONE Filters NONE Steam 1 RUN: 8534d928-5ff3-4f59-9598-59747cfb385a